Cogmind - Beta 14 @@@ ROGUE MODE // 2025.05.04 @ 20:54:32 Player: Jack Result: Destroyed by Y-45 Defender with Heavy Assault Rifle Performance ------------- Evolutions (1) 500 Regions Visited (3) 600 Robots Destroyed (16) 80 Value Destroyed (160) 160 Prototype IDs (0) 0 Alien Tech Used (0) 0 Bonus (0) 0 TOTAL SCORE: 1340 Bonus ------- None Cogmind --------- Core Integrity 0/400 Matter 49/300 Energy 100/100 System Corruption 0% Temperature Cool (10) Movement Flying (35) Location -9/Materials Parts ------- > --- POWER (1) -------- (None) > --- PROPULSION (4) --- VTOL Module > --- UTILITY (2) ------ Signal Interpreter > --- WEAPON (2) ------- (None) > --- INVENTORY (5) ---- Structural Scanner Structural Scanner Experimental Sensor Array Plasma Cutter Mace Peak State ------------ > --- POWER ------------ (None) > --- PROPULSION ------- Improved Hover Unit Improved Hover Unit Improved Hover Unit > --- UTILITY ---------- Signal Interpreter > --- WEAPON ----------- Light Assault Rifle > --- INVENTORY -------- Structural Scanner Structural Scanner Experimental Sensor Array Plasma Cutter Mace [Rating: 9] Favorites ----------- Power Light Ion Engine Engine Light Ion Engine Propulsion Flight Unit Leg Aluminum Leg Hover Unit Improved Hover Unit Flight Unit Flight Unit Utility Signal Interpreter Device Structural Scanner Processor Signal Interpreter Weapon Assault Rifle Energy Gun Small Laser Energy Cannon Light EM Pulse Cannon Ballistic Gun Assault Rifle Special Weapon Plasma Cutter Impact Weapon Mace Build | -11 -10 -10 -9 ------- Run | Yrd Mat Min Mat Slots Evolved 2 | . . . 2 Power . | . . . . Propulsion 2 | . . . 2 Utility . | . . . . Weapon . | . . . . Parts Attached 36 | 3 15 3 15 Power 3 | 1 1 1 . Engine 3 | 1 1 1 . Core . | . . . . Reactor . | . . . . Propulsion 17 | 2 5 1 9 Treads . | . . . . Leg 2 | 2 . . . Wheel . | . . . . Hover 3 | . . . 3 Flight 12 | . 5 1 6 Utility 2 | . 1 . 1 Device 1 | . . . 1 Storage . | . . . . Processor 1 | . 1 . . Hackware . | . . . . Protection . | . . . . Artifact . | . . . . Weapon 14 | . 8 1 5 Energy Gun 1 | . . . 1 Energy Cannon 3 | . 3 . . Ballistic Gun 8 | . 4 1 3 Ballistic Cannon . | . . . . Launcher . | . . . . Special Weapon 1 | . 1 . . Impact Weapon 1 | . . . 1 Slashing Weapon . | . . . . Piercing Weapon . | . . . . Special Melee Weapon . | . . . . Unidentified Prototypes . | . . . . Parts Lost 16 | . 2 1 13 Power 1 | . . . 1 Propulsion 9 | . 2 . 7 Utility . | . . . . Weapon 6 | . . 1 5 Highest Loss Streak 9 | . 1 1 9 To Critical Strikes . | . . . . Average Slot Usage (%) 49 | . 51 60 44 Engine 5 | . 10 2 1 Hover 1 | . . . 4 Flight 17 | . 21 16 12 Processor 7 | . 1 14 11 Energy Cannon 2 | . 6 . . Ballistic Gun 12 | . 11 26 9 Peak Build Rating 9 | 3 7 7 9 Average Rating 4 | 1 4 4 5 On Entrance 2 | . . 4 7 Naked Turns 66 | . 66 . . Heaviest Build 7 | 5 7 7 6 Greatest Support 21 | 20 8 8 21 Greatest Overweight (x) 1 | . 1 . 1 Average Overweight (x) . | . . . . Largest Inventory Capacity 5 | 5 5 5 5 Average Capacity 5 | 5 5 5 5 Most Carried 5 | 3 5 5 5 Average Carried 3 | 1 3 4 4 Final Capacity 5 | 5 5 5 5 Final Carried 5 | 3 5 4 5 Class Distribution -------------------- 100% | Mutant Dominant Class ---------------- Mutant | -10/Materials Mutant | -10/Mines Mutant | -9/Materials Resources | -11 -10 -10 -9 ----------- Run | Yrd Mat Min Mat Matter Collected 348 | 58 95 163 32 Remotely . | . . . . Salvage Created 244 | . 117 51 76 Parts 28 | . 11 6 11 Haulers Intercepted . | . . . . Recyclers Shooed 1 | . 1 . . Parts Field Recycled . | . . . . Retrieved Matter . | . . . . Parts Self-Destructed . | . . . . Prevented . | . . . . Kills | -11 -10 -10 -9 ------- Run | Yrd Mat Min Mat Combat Hostiles Destroyed 12 | . 3 3 6 Guns 11 | . 3 3 5 AOE 1 | . . . 1 Classes Destroyed 2 | . 2 . . Builder 4 | . 4 . . Swarmer 12 | . 3 3 6 Best Kill Streak 3 | . 3 3 3 Combat Bots Only 3 | . 3 3 3 Max Kills in Single Turn 1 | . 1 1 1 Gunslinging . | . . . . Exploded 1 | . . . 1 Melee . | . . . . Uniques/NPCs Destroyed . | . . . . Combat | -11 -10 -10 -9 -------- Run | Yrd Mat Min Mat Hostile Shots Fired 168 | . 28 12 128 Missed 54 | . 10 5 39 Damage Taken 1188 | . 180 84 924 Core 461 | . 58 . 403 Absorbed by Shields . | . . . . Core Remaining (%) 88 | 100 . 76 . Volleys Fired 71 | . 31 3 37 Largest 2 | . 2 2 2 Hottest 56 | . 56 40 40 Shots Fired 87 | . 41 6 40 Gun 66 | . 20 6 40 Cannon 18 | . 18 . . Launcher . | . . . . Special 3 | . 3 . . Kinetic 63 | . 20 6 37 Thermal 6 | . 3 . 3 Explosive . | . . . . Electromagnetic 18 | . 18 . . Robot Hit Streak 6 | . 6 4 6 Robot Miss Streak 7 | . 6 1 7 Penetration Max . | . . . . Secondary Targets 1 | . . 1 . Max Gunslinging Chain 1 | . . 1 . Shots Hit Robots 40 | . 20 4 16 Core Hits 16 | . 6 3 7 Critical Kills . | . . . . Critical Parts Destroyed . | . . . . Critical Strikes . | . . . . Melee Attacks 2 | . . . 2 Impact 2 | . . . 2 Slashing . | . . . . Piercing . | . . . . Sneak Attacks . | . . . . Combat Hostiles . | . . . . Follow-up Attacks . | . . . . Damage Inflicted 626 | . 336 48 242 Guns 328 | . 139 48 141 Cannons 197 | . 197 . . Explosions 101 | . . . 101 Melee . | . . . . Ramming . | . . . . Kinetic 328 | . 139 48 141 Thermal 101 | . . . 101 Explosive . | . . . . Electromagnetic 197 | . 197 . . Impact . | . . . . Slashing . | . . . . Piercing . | . . . . Highest Corruption . | . . . . Average Corruption . | . . . . Corruption Purged . | . . . . Corruption Blocked . | . . . . Overload Shots . | . . . . Overflow Damage 51 | . 27 . 24 Projectiles 27 | . 27 . . Explosions 24 | . . . 24 Melee . | . . . . Knockbacks . | . . . . Impact . | . . . . Kinetic . | . . . . Secondary . | . . . . Self-Inflicted Damage 88 | . . . 88 Shots 1 | . . . 1 Rammed 1 | . 1 . . Targets Rammed 1 | . 1 . . Kicked . | . . . . Crushed . | . . . . Highest Temperature 64 | . 64 2 . Average Temperature 21 | . 22 2 . Received Heat Transfer 210 | . 57 15 138 Siege Activations . | . . . . Robots Corrupted . | . . . . Combat Hostiles . | . . . . Parts Fried 3 | . 3 . . Impact Corruptions . | . . . . Robots Melted . | . . . . Combat Hostiles . | . . . . Parts Melted 1 | . . . 1 Heat Transferred 50 | . . . 50 Parts Sabotaged . | . . . . Parts Stolen . | . . . . Parts Stripped . | . . . . Power Chain Reactions . | . . . . Alert | -11 -10 -10 -9 ------- Run | Yrd Mat Min Mat Peak Influence 595 | . 321 173 595 Initial 63 | . . 43 63 Average 200 | . 156 90 304 Maximum Alert Level 2 | . 1 . 2 Low Security (%) 53 | 100 63 100 23 Level 1 33 | . 36 . 45 Level 2 12 | . . . 31 Level 3 . | . . . . Level 4 . | . . . . Level 5 . | . . . . High Security . | . . . . Max Security . | . . . . Squads Dispatched 3 | . . . 3 Investigation . | . . . . Extermination . | . . . . Reinforcement 3 | . . . 3 Assault . | . . . . Garrison . | . . . . Intercept . | . . . . Searches Triggered . | . . . . Construction Impeded . | . . . . Haulers Reinforced . | . . . . Active Scanning Responses . | . . . . Cargo Convoy Interrupts . | . . . . Stealth | -11 -10 -10 -9 --------- Run | Yrd Mat Min Mat Distress Signals 4 | . 2 . 2 Communications Jammed . | . . . . Distress Signals . | . . . . Times Spotted 58 | . 19 7 32 Peak Tracking Total 11 | . 5 5 11 Tactical Retreats 14 | . 5 1 8 Traps | -11 -10 -10 -9 ------- Run | Yrd Mat Min Mat Traps Triggered 1 | . 1 . . Indirectly . | . . . . Trap Hack Attempts . | . . . . Triggered . | . . . . Disarmed . | . . . . Reprogrammed . | . . . . Reused . | . . . . Traps Extracted . | . . . . Installed . | . . . . Triggered . | . . . . Machines | -11 -10 -10 -9 ---------- Run | Yrd Mat Min Mat Machines Disabled 2 | . . 1 1 Max in Single Turn 1 | . . 1 1 Machines Repaired . | . . . . Machines Dismantled . | . . . . Machines Sabotaged . | . . . . Overloaded Fab Kills . | . . . . Hacking | -11 -10 -10 -9 --------- Run | Yrd Mat Min Mat Machines Accessed . | . . . . Terminals . | . . . . Fabricators . | . . . . Repair Stations . | . . . . Recycling Units . | . . . . Scanalyzers . | . . . . Garrison Access . | . . . . Total Hacks . | . . . . Successful . | . . . . Failed . | . . . . Catastrophic . | . . . . Database Lockouts . | . . . . Manual . | . . . . Terminals . | . . . . Fabricators . | . . . . Repair Stations . | . . . . Recycling Units . | . . . . Scanalyzers . | . . . . Garrison Access . | . . . . Terminal Hacks . | . . . . Fabricator Hacks . | . . . . Repair Station Hacks . | . . . . Recycling Unit Hacks . | . . . . Scanalyzer . | . . . . Garrison Access Hacks . | . . . . Unauthorized Hacks . | . . . . Terminals . | . . . . Fabricators . | . . . . Repair Stations . | . . . . Recycling Units . | . . . . Scanalyzers . | . . . . Garrison Access . | . . . . Data Cores Recovered . | . . . . Used . | . . . . Hacking Detections . | . . . . Full Trace Events . | . . . . Feedback Events . | . . . . Feedback Blocked . | . . . . Robot Schematics Acquired . | . . . . Robots Built . | . . . . Authchips . | . . . . Time . | . . . . Total Robot Build Rating . | . . . . Part Schematics Acquired . | . . . . Parts Built . | . . . . Authchips . | . . . . Time . | . . . . Total Part Build Rating . | . . . . Parts Repaired . | . . . . Time . | . . . . Parts Recycled . | . . . . Recycled Matter . | . . . . Retrieved Matter . | . . . . Retrieved Components . | . . . . Parts Scanalyzed . | . . . . Part Schematics Acquired . | . . . . Parts Damaged . | . . . . Bothacking | -11 -10 -10 -9 ------------ Run | Yrd Mat Min Mat Used RIF Installer . | . . . . Robots Hacked . | . . . . Non-combat . | . . . . Combat . | . . . . Robot Hacks Applied . | . . . . Relay Couplers Released . | . . . . Fabnet Peak Effective % . | . . . . Robots Rewired . | . . . . Allies Hacked . | . . . . Hacks Repelled . | . . . . Allies | -11 -10 -10 -9 -------- Run | Yrd Mat Min Mat Total Allies . | . . . . Largest Group . | . . . . Highest-Rated Group . | . . . . Highest-Rated Ally . | . . . . Total Orders . | . . . . Ally Attacks . | . . . . Total Damage . | . . . . Kills . | . . . . Allies Corrupted . | . . . . Allies Melted . | . . . . Intel | -11 -10 -10 -9 ------- Run | Yrd Mat Min Mat Robot Analysis Total . | . . . . Derelict Logs Recovered 1 | . . 1 . Drone Launches . | . . . . Drone Recoveries . | . . . . Exploration | -11 -10 -10 -9 ------------- Run | Yrd Mat Min Mat Turns Passed 970 | 35 423 130 382 Spaces Moved 1417 | 35 671 248 463 Core 287 | 23 130 . 134 Treads . | . . . . Legs 12 | 12 . . . Wheels . | . . . . Hover 94 | . . . 94 Flight 1024 | . 541 248 235 Fastest Speed 34 | 50 37 37 34 Average Speed 42 | 74 40 39 44 Slowest Speed 120 | 120 120 40 100 Overloaded Moves . | . . . . Propulsion Burnouts . | . . . . Robots Hopped 19 | . 11 1 7 Cave-ins Triggered . | . . . . Exploration Rate (%) 45 | 2 76 63 41 Regions Visited 3 Branch Regions 1 Pre-discovered Areas . | . . . . Known Exits Taken 2 | . 1 1 . Unknown Exits Taken 1 | 1 . . . Scrap Searched 2 | . . 2 . Spaces Dug 2 | . . . 2 Terrain Destroyed 56 | . . . 56 Melee 2 | . . . 2 Projectile . | . . . . AOE 54 | . . . 54 Terrain Rammed . | . . . . Walls Destroyed . | . . . . Machines Disabled . | . . . . Actions | -11 -10 -10 -9 --------- Run | Yrd Mat Min Mat Total 1670 | 43 762 271 594 Wait 138 | . 47 15 76 Move 1378 | 34 649 245 450 Hop 17 | . 10 1 6 Pick Up 12 | 3 5 2 2 Fast Attach 22 | 3 6 2 11 Attach 12 | . 7 1 4 Detach 7 | . 4 . 3 Swap 2 | . 2 . . Drop 8 | 3 . 2 3 Fire 71 | . 31 3 37 Melee 2 | . . . 2 Ram 1 | . 1 . . Kick . | . . . . Crush . | . . . . Escape Stasis . | . . . . Rewire . | . . . . Trap . | . . . . Miscellaneous . | . . . . Route ------- -11/Scrapyard -10/Materials (discovered 3 exits: *Mat x2 / *Min) -10/Mines -9/Materials (discovered 2 exits: *Mat / *Sto) History --------- Turn | Location | Event 3 | -11/Scrapyard | Discovered new exit (range 15) 36 | -11/Scrapyard | Entered Materials 179 | -10/Materials | Discovered new exit (range 9) 279 | -10/Materials | Discovered new exit (range 6) 308 | -10/Materials | Build established: Mutant 404 | -10/Materials | Discovered new exit (range 14) 420 | -10/Materials | Identified exit to Materials 458 | -10/Materials | Identified exit to Mines 459 | -10/Materials | Entered Mines 510 | -10/Mines | Found a damaged Exp. Sensor Array with a note attached 512 | -10/Mines | Found Prototype Device 551 | -10/Mines | Discovered exit to Materials (range 6) 589 | -10/Mines | Entered Materials 589 | -9/Materials | Evolved 2 slots: Propulsion x2 590 | -9/Materials | Identified exit to Storage 745 | -9/Materials | Lost 9 parts (1p5n3w) 799 | -9/Materials | Core integrity fell below 50% 840 | -9/Materials | Lost 3 parts (2n1w) 879 | -9/Materials | Core integrity fell below 20% 922 | -9/Materials | Discovered new exit (range 8) 925 | -9/Materials | Identified exit to Materials 971 | -9/Materials | Destroyed by Y-45 Defender with Heavy Assault Rifle Last Messages --------------- Flight Unit destroyed. Destroyed Flight Unit. Acquired Lgt. Assault Rifle. Flight Unit destroyed. Acquired 20 matter. K-01 Serf collects debris. Acquired Mace. K-01 Serf collects debris. ALERT: Hostiles spotted, dispatching reinforcements to Terminal M001. S-10 Pest destroyed. K-01 Serf collects debris. Acquired Imp. Hover Unit. EXIT=FOUND EXIT=IDENTIFIED: MATERIALS O-16 Technician: "IFF HANDSHAKE FAILED. SECURING TERMINAL." Dropped Imp. Hover Unit. ALERT: Hostiles spotted, dispatching reinforcements to Terminal M006. Dropped Imp. Hover Unit. Acquired VTOL Module. Lgt. Assault Rifle destroyed. Map ----- +----------------------------------------------------+ | | | | | | | | | | | | | | | | | | | ???????????????????????????????????? | | #####??????????????????????????????? | | # ??????????????????????????????? | | # #?????????????????????????????? | | # #?????????????????????????????? | | # ######????????????????????????? | | # + #????????????????????????? | | # #### #???????????? ???????????? | | # #??# #?????????? ???????????? | | ######### #????????? #????????????? | | # # #??????? #????????????? | | # # #?????? ??????????????? | | # [[] # #????? ????????????????? | | # [[ # #???? ##????????????????? | | # [[ #Y#### #????????????????? | | # =+= "" #????????????????? | | # # @ T #????????????????? | | # ## ### #????????????????? | | # "T" ## #???## #????????????????? | | # """ ## #????? ?????????????????? | | # ## #????? ?????????????????? | | #### ##### #????? ?????????????????? | | ???###???# #????# #????????????????? | | ?????????# #????# #????????????????? | | ?????????# #????# #????????????????? | | ?????????# #????# #????????????????? | | ??????####+####?# #????????????????? | | ??????# ### #????????????????? | | ??????# !! + #????????????????? | | ??????# !! ! # #????????????????? | | ??????# !! # ##### ??? | | ??????# + #????????? | | ??????###########+##### #????????? | | ???????????# #?????????????? | | ???????????# #?????????????? | | ???????????# #?????????????? | | ???????????# #?????????????? | | ???????????# #?????????????? | | ???????????# """ """ #?????????????? | | ???????????# """ """ #????#????????? | | ???????????# """ """ #??? #????????? | +----------------------------------------------------+ Best States ------------- Heat Dissipation 28 Energy Generation 10 Energy Capacity 250 Matter Stores 145 Matter Capacity 300 Sight Range 16 Terrain Scan Density 10 Evasion (%) 63 Item Schematics ----------------- None Robot Schematics ------------------ None Fabricated ------------ Nothing Alien Tech Used ----------------- None Achievements -------------- None Challenges ------------ None Game ------ Seed BoreAluminumGreatsword Manual? 0 Play Time 00:13:04 Cumulative 80.1 hours Start 2025.05.04 @ 20:41:21 End 2025.05.04 @ 20:54:32 Sessions 1 Manual Loads 0 Difficulty Rogue Special Mode None Game No. 97 Rogue 5 Adventurer 86 Explorer 6 Win Type - Total 17 Types 3/0/7/0/2/0/4/1/0 Lore% 34 Gallery% 34 Achievement% 57 Wizard Run 0 Options --------- Layout 0 ASCII 0 Keyboard 0 Movement Mouse Keybinds 0 Fullscreen 2 Font 12/Smallcaps Map View 83x54 Zoom Use 0% Tactical HUD 0 Map Filters NONE Filters NONE Steam 1 RUN: a27602e1-82f3-43c7-ab8f-7726f9136ea5